fUSD/lending_fUSD_20240821
["ID","MTS","AMOUNT","RATE_DAILY","PERIOD"]
[335473119,1724254861440,-184.24658672,0.00013698,2]
[335473120,1724254861461,-500.0,0.00013698,2]
[335473121,1724254861482,-500.0,0.00013698,2]
[335473122,1724254861505,-517.47449229,0.00013698,2]
[335473123,1724254861528,-500.0,0.00013698,2]
[335473124,1724254861553,-172.43926198,0.00013698,2]
[335473125,1724254861574,-500.0,0.00013698,2]
[335473126,1724254861595,-551.24536999,0.00013698,2]
[335473127,1724254861615,-500.0,0.00013698,2]
[335473128,1724254861637,-390.48239739,0.00013698,2]
[335473129,1724254861657,-500.0,0.00013698,2]
[335473130,1724254861678,-184.54851282,0.00013698,2]
[335473131,1724254861699,-500.0,0.00013698,2]
[335473132,1724254861722,-500.0,0.00013698,2]
[335473133,1724254861743,-500.0,0.00013698,2]
[335473134,1724254861763,-500.0,0.00013698,2]
[335473135,1724254861785,-500.0,0.00013698,2]
[335473136,1724254861806,-414.1322814,0.00013698,2]
[335473137,1724254861827,-521.46772069,0.00013698,2]
[335473138,1724254861848,-518.51357319,0.00013698,2]
[335473139,1724254861868,-500.0,0.00013698,2]
[335473140,1724254861889,-500.0,0.00013698,2]
[335473141,1724254861911,-559.17,0.00013698,2]
[335473142,1724254861932,-500.0,0.00013698,2]
[335473143,1724254861953,-500.0,0.00013698,2]
[335473144,1724254861974,-500.0,0.00013698,2]
[335473145,1724254861995,-500.0,0.00013698,2]
[335473146,1724254862016,-500.0,0.00013698,2]
[335473147,1724254862037,-500.0,0.00013698,2]
[335473148,1724254862063,-500.0,0.00013698,2]
[335473149,1724254862084,-521.44853203,0.00013698,2]
[335473150,1724254862104,-500.0,0.00013698,2]
[335473151,1724254862124,-500.0,0.00013698,2]
[335473152,1724254862144,-776.74,0.00013698,2]
[335473153,1724254862164,-573.44,0.00013698,2]
[335473154,1724254862184,-959.11,0.00013698,2]
[335473155,1724254862204,-500.0,0.00013698,2]
[335473156,1724254862226,-500.0,0.00013698,2]
[335473157,1724254862248,-517.37910759,0.00013698,2]
[335473158,1724254862268,-1293.49,0.00013698,2]
[335473159,1724254862288,-3159.32,0.00013698,2]
[335473160,1724254862309,-546.4,0.00013698,2]
[335473161,1724254862331,-500.0,0.00013698,2]
[335473162,1724254862351,-852.2,0.00013698,2]
[335473163,1724254862371,-500.0,0.00013698,2]
[335473164,1724254862405,-500.0,0.00013698,2]
[335473165,1724254862426,-1238.46,0.00013698,2]
[335473166,1724254862449,-500.0,0.00013698,2]
[335473167,1724254862472,-500.0,0.00013698,2]
[335473168,1724254862493,-513.44585098,0.00013698,2]
[335473169,1724254862514,-528.34269695,0.00013698,2]
[335473170,1724254862535,-3075.18,0.00013698,2]
[335473171,1724254862554,-500.0,0.00013698,2]
[335473172,1724254862574,-1338.22,0.00013698,2]
[335473173,1724254862597,-500.0,0.00013698,2]
[335473174,1724254862618,-500.0,0.00013698,2]
[335473175,1724254862639,-500.0,0.00013698,2]
[335473176,1724254862660,-500.0,0.00013698,2]
[335473177,1724254862680,-694.77,0.00013698,2]
[335473178,1724254862702,-500.0,0.00013698,2]
[335473179,1724254862723,-500.0,0.00013698,2]
[335473180,1724254862742,-439.36079977,0.00013698,2]
[335473181,1724254862762,-500.0,0.00013698,2]
[335473182,1724254862783,-538.48541317,0.00013698,2]
[335473183,1724254862804,-500.0,0.00013698,2]
[335473184,1724254862824,-500.0,0.00013698,2]
[335473185,1724254862846,-500.0,0.00013698,2]
[335473186,1724254862867,-500.0,0.00013698,2]
[335473187,1724254862888,-500.0,0.00013698,2]
[335473188,1724254862909,-500.0,0.00013698,2]
[335473189,1724254862929,-2234.04,0.00013698,2]
[335473190,1724254862951,-500.0,0.00013698,2]
[335473191,1724254862972,-500.0,0.00013698,2]
[335473192,1724254862992,-500.0,0.00013698,2]
[335473193,1724254863014,-607.51,0.00013698,2]
[335473194,1724254863035,-500.0,0.00013698,2]
[335473195,1724254863056,-500.0,0.00013698,2]
[335473196,1724254863079,-500.0,0.00013698,2]
[335473197,1724254863100,-500.0,0.00013698,2]
[335473198,1724254863123,-500.0,0.00013698,2]
[335473199,1724254863145,-500.0,0.00013698,2]
[335473200,1724254863166,-1419.87,0.00013698,2]
[335473201,1724254863188,-516.19708627,0.00013698,2]
[335473202,1724254863210,-500.0,0.00013698,2]
[335473203,1724254863232,-455.55619433,0.00013698,2]
[335473204,1724254863253,-500.0,0.00013698,2]
[335473205,1724254863275,-500.0,0.00013698,2]
[335473206,1724254863299,-500.0,0.00013698,2]
[335473207,1724254863321,-500.0,0.00013698,2]
[335473208,1724254863353,-514.73107191,0.00013698,2]
[335473209,1724254863382,-500.0,0.00013698,2]
[335473210,1724254863405,-613.42414976,0.00013698,2]
[335473211,1724254863428,-500.0,0.00013698,2]
[335473212,1724254863451,-510.09250609,0.00013698,2]
[335473213,1724254863474,-500.0,0.00013698,2]
[335473214,1724254863496,-1006.61,0.00013698,2]
[335473215,1724254863518,-504.46844441,0.00013698,2]
[335473216,1724254863541,-500.0,0.00013698,2]
[335473217,1724254863563,-870.53,0.00013698,2]
[335473218,1724254863588,-539.29171223,0.00013698,2]
[335473219,1724254863611,-1292.45,0.00013698,2]
[335473220,1724254863634,-519.49280568,0.00013698,2]
[335473221,1724254863792,-340.45645653,0.00013698,2]
[335473222,1724254863819,-706.57,0.00013698,2]
[335473223,1724254863844,-523.50916269,0.00013698,2]
[335473224,1724254863867,-500.0,0.00013698,2]
[335473225,1724254863890,-574.07,0.00013698,2]
[335473226,1724254863913,-1524.99,0.00013698,2]
[335473227,1724254863936,-500.0,0.00013698,2]
[335473228,1724254863958,-500.0,0.00013698,2]
[335473229,1724254863980,-246.67581642,0.00013698,2]
[335473230,1724254864003,-500.0,0.00013698,2]
[335473231,1724254864025,-1975.42,0.00013698,2]
[335473232,1724254864047,-778.98,0.00013698,2]
[335473233,1724254864069,-504.99999914,0.00013698,2]
[335473234,1724254864092,-500.0,0.00013698,2]
[335473235,1724254864116,-1715.19,0.00013698,2]
[335473236,1724254864138,-516.29108659,0.00013698,2]
[335473237,1724254864159,-3694.59,0.00013698,2]
[335473238,1724254864182,-500.0,0.00013698,2]
[335473239,1724254864203,-500.0,0.00013698,2]
[335473240,1724254864226,-605.65192392,0.00013698,2]
[335473241,1724254864249,-500.0,0.00013698,2]
[335473242,1724254864272,-500.0,0.00013698,2]
[335473243,1724254864294,-500.0,0.00013698,2]
[335473244,1724254864316,-500.0,0.00013698,2]
[335473245,1724254864339,-500.0,0.00013698,2]
[335473246,1724254864361,-500.0,0.00013698,2]
[335473247,1724254864382,-500.0,0.00013698,2]
[335473248,1724254864404,-500.0,0.00013698,2]
[335473249,1724254864427,-500.0,0.00013698,2]
[335473250,1724254864449,-518.53827424,0.00013698,2]
[335473251,1724254864471,-500.0,0.00013698,2]
[335473252,1724254864492,-500.0,0.00013698,2]
[335473253,1724254864514,-613.01,0.00013698,2]
[335473254,1724254864537,-500.0,0.00013698,2]
[335473255,1724254864558,-500.0,0.00013698,2]
[335473256,1724254864582,-809.6,0.00013698,2]
[335473257,1724254864604,-500.0,0.00013698,5]
[335473258,1724254864625,-557.57,0.00013698,2]
[335473259,1724254864648,-500.0,0.00013698,2]
[335473260,1724254864671,-500.0,0.00013698,2]
[335473261,1724254864693,-500.0,0.00013698,2]
[335473262,1724254864719,-3610.71,0.00013698,2]
[335473263,1724254864742,-583.65,0.00013698,2]
[335473264,1724254864765,-500.0,0.00013698,2]
[335473265,1724254864788,-509.65,0.00013698,2]
[335473266,1724254864810,-3836.74,0.00013698,2]
[335473267,1724254864833,-668.04,0.00013698,2]
[335473268,1724254864855,-159.1126198,0.00013698,2]
[335473269,1724254864877,-500.0,0.00013698,2]
[335473270,1724254864899,-500.0,0.00013698,2]
[335473271,1724254864920,-1151.5,0.00013698,2]
[335473272,1724254864943,-672.85,0.00013698,2]
[335473273,1724254864964,-3787.17,0.00013698,2]
[335473274,1724254864986,-500.0,0.00013698,2]
[335473275,1724254865008,-500.0,0.00013698,2]
[335473276,1724254865030,-2315.36,0.00013698,2]
[335473277,1724254865052,-151.0,0.00013698,2]
[335473278,1724254865074,-500.0,0.00013698,2]
[335473279,1724254865098,-500.0,0.00013698,2]
[335473280,1724254865120,-500.0,0.00013698,2]
[335473281,1724254865141,-500.0,0.00013698,2]
[335473282,1724254865163,-500.0,0.00013698,2]
[335473283,1724254865184,-500.0,0.00013698,2]
[335473284,1724254865206,-500.0,0.00013698,2]
[335473285,1724254865227,-646.95922391,0.00013698,2]
[335473286,1724254865249,-856.45,0.00013698,2]
[335473287,1724254865270,-503.28767235,0.00013698,2]
[335473288,1724254865290,-436.16,0.00013698,2]
[335473289,1724254865311,-725.0,0.00013698,2]
[335473290,1724254865333,-500.0,0.00013698,2]
[335473291,1724254865354,-5465.2,0.00013698,2]
[335473292,1724254865375,-500.0,0.00013698,2]
[335473293,1724254865395,-157.77410409,0.00013698,2]
[335473294,1724254865417,-1071.53,0.00013698,2]
[335473295,1724254865439,-500.0,0.00013698,2]
[335473296,1724254865460,-500.0,0.00013698,2]
[335473297,1724254865481,-500.0,0.00013698,2]
[335473298,1724254865503,-7475.12,0.00013698,2]
[335473299,1724254865524,-500.0,0.00013698,2]
[335473300,1724254865547,-500.0,0.00013698,2]
[335473301,1724254865569,-760.36,0.00013698,2]
[335473302,1724254865592,-585.87,0.00013698,2]
[335473303,1724254865613,-500.0,0.00013698,2]
[335473304,1724254865634,-500.0,0.00013698,2]
[335473305,1724254865655,-539.22884946,0.00013698,2]
[335473306,1724254865676,-186.68165263,0.00013698,2]
[335473307,1724254865698,-4742.38,0.00013698,2]
[335473308,1724254865725,-1294.77,0.00013698,2]
[335473309,1724254865746,-500.0,0.00013698,2]
[335473310,1724254865767,-510.71,0.00013698,2]
[335473311,1724254865790,-500.0,0.00013698,2]
[335473312,1724254865812,-500.0,0.00013698,2]
[335473313,1724254865835,-500.0,0.00013698,2]
[335473314,1724254865857,-500.0,0.00013698,2]
[335473315,1724254865885,-2555.19,0.00013698,2]
[335473316,1724254865909,-500.0,0.00013698,2]
[335473317,1724254865930,-500.0,0.00013698,2]
[335473318,1724254865952,-2180.56,0.00013698,2]
[335473319,1724254865974,-1754.49,0.00013698,2]
[335473320,1724254865996,-3049.17,0.00013698,2]
[335473321,1724254866018,-500.0,0.00013698,2]
[335473322,1724254866039,-500.0,0.00013698,2]
[335473323,1724254866062,-500.0,0.00013698,2]
[335473324,1724254866084,-7303.26,0.00013698,2]
[335473325,1724254866106,-1252.06,0.00013698,2]
[335473326,1724254866128,-641.62,0.00013698,2]
[335473327,1724254866150,-500.0,0.00013698,2]
[335473328,1724254866171,-745.27,0.00013698,2]
[335473329,1724254866192,-703.77,0.00013698,2]
[335473330,1724254866213,-500.0,0.00013698,2]
[335473331,1724254866234,-2915.76,0.00013698,2]
[335473332,1724254866257,-500.0,0.00013698,2]
[335473333,1724254866280,-17205.71,0.00013698,2]
[335473334,1724254866300,-500.0,0.00013698,2]
[335473335,1724254866321,-500.0,0.00013698,2]
[335473336,1724254866343,-500.0,0.00013698,2]
[335473337,1724254866363,-500.0,0.00013698,2]
[335473338,1724254866385,-2071.11,0.00013698,2]
[335473339,1724254866407,-1966.43,0.00013698,2]
[335473340,1724254866430,-14642.19,0.00013698,2]
[335473341,1724254866454,-5538.52,0.00013698,2]
[335473342,1724254866475,-389.34306352,0.00013698,2]
[335473343,1724254866495,-500.0,0.00013698,2]
[335473344,1724254866646,-38689.43,0.00013698,2]
[335473345,1724254866668,-2176.39,0.00013698,2]
[335473346,1724254866689,-1375.55,0.00013698,2]
[335473347,1724254866713,-1557.17,0.00013698,2]
[335473348,1724254866735,-500.0,0.00013698,2]
[335473349,1724254866757,-1702.55,0.00013698,2]
[335473350,1724254866780,-4644.99,0.00013698,2]
[335473351,1724254866802,-4230.72,0.00013698,2]
[335473352,1724254866823,-500.0,0.00013698,2]
[335473353,1724254866849,-500.0,0.00013698,2]
[335473354,1724254866871,-1632.37,0.00013698,2]
[335473355,1724254866892,-500.0,0.00013698,2]
[335473356,1724254866914,-4036.38,0.00013698,2]
[335473357,1724254866936,-2242.27,0.00013698,2]
[335473358,1724254866957,-1015.93,0.00013698,2]
[335473359,1724254866978,-2180.32,0.00013698,2]
[335473360,1724254866999,-500.0,0.00013698,2]
[335473361,1724254867020,-5791.35,0.00013698,2]
[335473362,1724254867042,-2059.56,0.00013698,2]
[335473363,1724254867062,-500.0,0.00013698,2]
[335473364,1724254867085,-500.0,0.00013698,2]
[335473365,1724254867106,-9254.59,0.00013698,2]
[335473366,1724254867127,-219.55200316,0.00013698,2]
[335473367,1724254867148,-890.21,0.00013698,2]
[335473368,1724254867173,-21541.67,0.00013698,2]
[335473369,1724254867195,-599.24517227,0.00013698,2]
[335473370,1724254867216,-500.0,0.00013698,2]
[335473371,1724254867238,-500.0,0.00013698,2]
[335473372,1724254867262,-500.0,0.00013698,2]
[335473373,1724254867283,-500.0,0.00013698,2]
[335473374,1724254867304,-500.0,0.00013698,2]
[335473375,1724254867325,-3591.18,0.00013698,2]
[335473376,1724254867348,-1106.82,0.00013698,2]
[335473377,1724254867369,-2092.17,0.00013698,2]
[335473378,1724254867395,-500.0,0.00013698,2]
[335473379,1724254867417,-500.0,0.00013698,2]
[335473380,1724254867439,-6999.0,0.00013698,2]
[335473381,1724254867461,-1074.52,0.00013698,2]
[335473382,1724254867482,-4089.14,0.00013698,2]
[335473383,1724254867503,-500.0,0.00013698,2]
[335473384,1724254867525,-2936.17,0.00013698,2]
[335473385,1724254867547,-590.53783419,0.00013698,2]
[335473386,1724254867568,-500.0,0.00013698,2]
[335473387,1724254867590,-698.68,0.00013698,2]
[335473388,1724254867611,-14784.28,0.00013698,2]
[335473389,1724254867636,-573.95609074,0.00013698,2]
[335473390,1724254867661,-824.86,0.00013698,2]
[335473391,1724254867685,-4347.61,0.00013698,2]
[335473392,1724254867712,-5388.5,0.00013698,2]
[335473393,1724254867736,-589.26,0.00013698,2]
[335473394,1724254867760,-2443.47,0.00013698,2]
[335473395,1724254867785,-500.0,0.00013698,2]
[335473396,1724254867807,-1468.91,0.00013698,2]
[335473397,1724254867828,-606.83118937,0.00013698,2]
[335473398,1724254867850,-500.0,0.00013698,2]
[335473399,1724254867871,-500.0,0.00013698,2]
[335473400,1724254867893,-4810.05,0.00013698,2]
[335473401,1724254867921,-7797.79,0.00013698,2]
[335473402,1724254867944,-500.0,0.00013698,2]
[335473403,1724254867968,-1114.1,0.00013698,2]
[335473404,1724254867990,-513.84346148,0.00013698,2]
[335473405,1724254868012,-2713.58,0.00013698,2]
[335473406,1724254868035,-892.27,0.00013698,2]
[335473407,1724254868056,-3097.29,0.00013698,2]
[335473408,1724254868078,-406.3989175,0.00013698,2]
[335473409,1724254868102,-543.61950073,0.00013698,2]
[335473410,1724254868125,-946.16,0.00013698,2]
[335473411,1724254868147,-2967.68,0.00013698,2]
[335473412,1724254868168,-500.0,0.00013698,2]
[335473413,1724254868189,-1388.31,0.00013698,2]
[335473414,1724254868211,-5106.82,0.00013698,2]
[335473415,1724254868234,-4779.42,0.00013698,2]
[335473416,1724254868263,-712.97,0.00013698,2]
[335473417,1724254868300,-661.4,0.00013698,2]
[335473418,1724254868323,-12513.3,0.00013698,2]
[335473419,1724254868352,-2791.0,0.00013698,2]
[335473420,1724254868377,-7540.72996306,0.00013698,2]
[335473421,1724254868401,-853.17,0.00013698,2]
[335473422,1724254868423,-5693.7,0.00013698,2]
[335473423,1724254868444,-4218.56,0.00013698,2]
[335473424,1724254868466,-609.64,0.00013698,2]
[335473425,1724254868488,-1985.89,0.00013698,2]
[335473426,1724254868511,-1032.67,0.00013698,2]
[335473427,1724254868532,-3245.71,0.00013698,2]
[335473428,1724254868553,-151.0,0.00013698,2]
[335473429,1724254868575,-500.0,0.00013698,2]
[335473430,1724254868599,-151.0,0.00013698,2]
[335473431,1724254868619,-500.0,0.00013698,2]
[335473432,1724254868641,-1881.69,0.00013698,2]
[335473433,1724254868663,-18618.85,0.00013698,2]
[335473434,1724254868684,-541.01259629,0.00013698,2]
[335473435,1724254868708,-500.0,0.00013698,2]
[335473436,1724254868729,-2253.96,0.00013698,2]
[335473437,1724254868750,-200.0,0.00013751,2]
[335473438,1724254868772,-1279.84630913,0.0001379,2]
[335473439,1724254868795,-8637.18228898,0.000138,2]
[335473440,1724254868815,-900.97870843,0.00013821,2]
[335473441,1724254868838,-271.344,0.00013835,2]
[335473442,1724254868858,-810.0,0.00013835,2]
[335473443,1724254868880,-447.0,0.00013835,2]
[335473444,1724254868902,-559.834,0.00013835,2]
[335473445,1724254868922,-165.401,0.00013835,2]
[335473446,1724254868946,-1980.766,0.00013835,2]
[335473447,1724254868968,-553.508,0.00013835,2]
[335473448,1724254868989,-1181.816,0.00013835,2]
[335473449,1724254869010,-355.348,0.00013835,2]
[335473450,1724254869030,-3319.0,0.00013835,2]
[335473451,1724254869052,-764.0,0.00013835,2]
[335473452,1724254869072,-2352.317,0.00013835,2]
[335473453,1724254869097,-289.0,0.00013835,2]
[335473454,1724254869118,-21777.0,0.00013835,2]
[335473455,1724254869139,-1077.0,0.00013835,2]
[335473456,1724254869160,-440.08291615,0.00013861,2]
[335473457,1724254869181,-252.88535117,0.00013861,2]
[335473458,1724254869202,-155.0,0.00013861,2]
[335473459,1724254869224,-193.30323054,0.00013861,2]
[335473460,1724254869244,-266.69786374,0.0001387,2]
[335473461,1724254869387,-150.0,0.00013886,2]
[335473462,1724254869412,-200.0,0.00013888,2]
[335473463,1724254869434,-151.0,0.000139,2]
[335473464,1724254869457,-102097.962734,0.000139,2]
[335473465,1724254869479,-828.23045276,0.000139,2]
[335473466,1724254869499,-172.46467045,0.000139,2]
[335473467,1724254869520,-1184.54401,0.0001396,2]
[335473468,1724254869542,-1258.0,0.00013966,2]
[335473469,1724254869563,-1923.0,0.00013966,2]
[335473470,1724254869585,-623.0,0.00013966,2]
[335473471,1724254869605,-1544.0,0.00013966,2]
[335473472,1724254869626,-155.0,0.00013971,2]
[335473473,1724254869647,-155.0,0.00013971,2]
[335473474,1724254869668,-500.0,0.00013972,2]
[335473475,1724254869689,-500.0,0.00013972,2]
[335473476,1724254869712,-500.0,0.00013972,2]
[335473477,1724254869733,-500.0,0.00013972,2]
[335473478,1724254869756,-500.0,0.00013972,2]
[335473479,1724254869777,-500.0,0.00013972,2]
[335473480,1724254869800,-500.0,0.00013972,2]
[335473481,1724254869822,-500.0,0.00013972,2]
[335473482,1724254869851,-500.0,0.00013972,2]
[335473483,1724254869872,-500.0,0.00013972,2]
[335473484,1724254869896,-500.0,0.00013972,2]
[335473485,1724254869918,-500.0,0.00013972,2]
[335473486,1724254869950,-500.0,0.00013972,2]
[335473487,1724254869981,-500.0,0.00013972,2]
[335473488,1724254870014,-500.0,0.00013972,2]
[335473489,1724254870048,-500.0,0.00013972,2]
[335473490,1724254870083,-500.0,0.00013972,2]
[335473491,1724254870114,-500.0,0.00013972,2]
[335473492,1724254870145,-500.0,0.00013972,2]
[335473493,1724254870177,-498.93,0.00013972,2]
[335473494,1724254870207,-506.60543473,0.00013972,2]
[335473495,1724254870238,-500.0,0.00013972,2]
[335473496,1724254870270,-488.2526167,0.00013972,2]
[335473497,1724254870302,-500.0,0.00013972,2]
[335473498,1724254870333,-500.0,0.00013972,2]
[335473499,1724254870364,-510.51074092,0.00013972,2]
[335473500,1724254870395,-500.0,0.00013972,2]
[335473501,1724254870426,-559.17,0.00013972,2]
[335473502,1724254870456,-514.17830296,0.00013972,2]
[335473503,1724254870486,-500.0,0.00013972,2]
[335473504,1724254870518,-500.0,0.00013972,2]
[335473505,1724254870550,-500.0,0.00013972,2]
[335473506,1724254870582,-500.0,0.00013972,2]
[335473507,1724254870613,-500.0,0.00013972,2]
[335473508,1724254870646,-500.0,0.00013972,2]
[335473509,1724254870667,-500.0,0.00013972,2]
[335473510,1724254870688,-500.0,0.00013972,2]
[335473511,1724254870711,-776.74,0.00013972,2]
[335473512,1724254870732,-573.44,0.00013972,2]
[335473513,1724254870753,-959.11,0.00013972,2]
[335473514,1724254870774,-500.0,0.00013972,2]
[335473515,1724254870797,-500.0,0.00013972,2]
[335473516,1724254870818,-1293.49,0.00013972,2]
[335473517,1724254870842,-3159.32,0.00013972,2]
[335473518,1724254870864,-546.4,0.00013972,2]
[335473519,1724254870885,-500.0,0.00013972,2]
[335473520,1724254870906,-852.2,0.00013972,2]
[335473521,1724254870927,-500.0,0.00013972,2]
[335473522,1724254870949,-500.0,0.00013972,2]
[335473523,1724254870970,-1238.46,0.00013972,2]
[335473524,1724254870991,-228.92734389,0.00013972,2]
[335473525,1724254871013,-500.0,0.00013972,2]
[335473526,1724254871035,-3075.18,0.00013972,2]
[335473527,1724254871056,-500.0,0.00013972,2]
[335473528,1724254871077,-1338.22,0.00013972,2]
[335473529,1724254871099,-500.0,0.00013972,2]
[335473530,1724254871122,-500.0,0.00013972,2]
[335473531,1724254871146,-500.0,0.00013972,2]
[335473532,1724254871167,-500.0,0.00013972,2]
[335473533,1724254871188,-694.77,0.00013972,2]
[335473534,1724254871209,-500.0,0.00013972,2]
[335473535,1724254871230,-500.0,0.00013972,2]
[335473536,1724254871251,-500.0,0.00013972,2]
[335473537,1724254871272,-500.0,0.00013972,2]
[335473538,1724254871293,-500.0,0.00013972,2]
[335473539,1724254871317,-573.26,0.00013972,2]
[335473540,1724254871341,-500.0,0.00013972,2]
[335473541,1724254871363,-500.0,0.00013972,2]
[335473542,1724254871384,-500.0,0.00013972,2]
[335473543,1724254871405,-2234.04,0.00013972,2]
[335473544,1724254871426,-216.48,0.00013972,2]
[335473545,1724254871450,-616.95,0.00013972,2]
[335473546,1724254871473,-500.0,0.00013972,2]
[335473547,1724254871494,-500.0,0.00013972,2]
[335473548,1724254871514,-500.0,0.00013972,2]
[335473549,1724254871536,-500.0,0.00013972,2]
[335473550,1724254871556,-500.0,0.00013972,2]
[335473551,1724254871577,-412.95,0.00013972,2]
[335473552,1724254871603,-500.0,0.00013972,2]
[335473553,1724254871624,-1419.87,0.00013972,2]
[335473554,1724254871645,-500.0,0.00013972,2]
[335473555,1724254871666,-500.0,0.00013972,2]
[335473556,1724254871687,-500.0,0.00013972,2]
[335473557,1724254871712,-160.77679114,0.00013972,2]
[335473558,1724254871733,-500.0,0.00013972,2]
[335473559,1724254871755,-500.0,0.00013972,2]
[335473560,1724254871776,-1006.61,0.00013972,2]
[335473561,1724254871800,-500.0,0.00013972,2]
[335473562,1724254871823,-870.53,0.00013972,2]
[335473563,1724254871848,-1292.45,0.00013972,2]
[335473564,1724254871871,-706.57,0.00013972,2]
[335473565,1724254871893,-574.07,0.00013972,2]
[335473566,1724254871916,-1524.99,0.00013972,2]
[335473567,1724254871938,-500.0,0.00013972,2]
[335473568,1724254871960,-500.0,0.00013972,2]
[335473569,1724254871983,-500.0,0.00013972,2]
[335473570,1724254872005,-1975.42,0.00013972,2]
[335473571,1724254872026,-778.98,0.00013972,2]
[335473572,1724254872048,-500.0,0.00013972,2]
[335473573,1724254872189,-1715.19,0.00013972,2]
[335473574,1724254872215,-3694.59,0.00013972,2]
[335473575,1724254872237,-500.0,0.00013972,2]
[335473576,1724254872258,-500.0,0.00013972,2]
[335473577,1724254872280,-500.0,0.00013972,2]
[335473578,1724254872303,-500.0,0.00013972,2]
[335473579,1724254872326,-500.0,0.00013972,2]
[335473580,1724254872350,-500.0,0.00013972,2]
[335473581,1724254872372,-500.0,0.00013972,2]
[335473582,1724254872395,-500.0,0.00013972,2]
[335473583,1724254872417,-500.0,0.00013972,2]
[335473584,1724254872439,-500.0,0.00013972,2]
[335473585,1724254872462,-500.0,0.00013972,2]
[335473586,1724254872485,-613.01,0.00013972,2]
[335473587,1724254872508,-500.0,0.00013972,2]
[335473588,1724254872529,-809.6,0.00013972,2]
[335473589,1724254872553,-500.0,0.00013972,5]
[335473590,1724254872575,-557.57,0.00013972,2]
[335473591,1724254872601,-500.0,0.00013972,2]
[335473592,1724254872623,-500.0,0.00013972,2]
[335473593,1724254872646,-500.0,0.00013972,2]
[335473594,1724254872668,-3610.71,0.00013972,2]
[335473595,1724254872690,-583.65,0.00013972,2]
[335473596,1724254872718,-500.0,0.00013972,2]
[335473597,1724254872741,-509.65,0.00013972,2]
[335473598,1724254872764,-3836.74,0.00013972,2]
[335473599,1724254872790,-668.04,0.00013972,2]
[335473600,1724254872813,-500.0,0.00013972,2]
[335473601,1724254872839,-619.21312086,0.00013972,2]
[335473602,1724254872860,-1151.5,0.00013972,2]
[335473603,1724254872882,-672.85,0.00013972,2]
[335473604,1724254872905,-3787.17,0.00013972,2]
[335473605,1724254872927,-500.0,0.00013972,2]
[335473606,1724254872953,-500.0,0.00013972,2]
[335473607,1724254872976,-2315.36,0.00013972,2]
[335473608,1724254872999,-151.0,0.00013972,2]
[335473609,1724254873023,-539.85336629,0.00013972,2]
[335473610,1724254873047,-500.0,0.00013972,2]
[335473611,1724254873070,-500.0,0.00013972,2]
[335473612,1724254873097,-500.0,0.00013972,2]
[335473613,1724254873119,-500.0,0.00013972,2]
[335473614,1724254873142,-500.0,0.00013972,2]
[335473615,1724254873165,-856.45,0.00013972,2]
[335473616,1724254873189,-725.0,0.00013972,2]
[335473617,1724254873211,-500.0,0.00013972,2]
[335473618,1724254873235,-5465.2,0.00013972,2]